fUST/lending_fUST_20260421
["ID","MTS","AMOUNT","RATE_DAILY","PERIOD"]
[420933015,1776738649290,-155.0,0.00017779,2]
[420933016,1776738649299,-8782.11543764,0.00017793,2]
[420933017,1776738649308,-415.61,0.00017794,2]
[420933018,1776738649318,-500.0,0.00017808,2]
[420933019,1776738649328,-500.0,0.00017808,2]
[420933020,1776738649337,-500.0,0.00017808,2]
[420933021,1776738649348,-500.0,0.00017808,2]
[420933022,1776738649357,-550.2,0.00017808,2]
[420933023,1776738649366,-500.0,0.00017808,2]
[420933024,1776738649375,-500.0,0.00017808,2]
[420933025,1776738649384,-555.17,0.00017808,2]
[420933026,1776738649394,-500.0,0.00017808,2]
[420933027,1776738649404,-500.0,0.00017808,2]
[420933028,1776738649413,-566.33,0.00017808,2]
[420933029,1776738649423,-700.65,0.00017808,2]
[420933030,1776738649432,-663.16,0.00017808,2]
[420933031,1776738649441,-500.0,0.00017808,2]
[420933032,1776738649451,-500.0,0.00017808,2]
[420933033,1776738649460,-1395.49,0.00017808,2]
[420933034,1776738649469,-500.0,0.00017808,2]
[420933035,1776738649479,-500.0,0.00017808,2]
[420933036,1776738649488,-915.61,0.00017808,2]
[420933037,1776738649498,-500.0,0.00017808,2]
[420933038,1776738649507,-500.0,0.00017808,2]
[420933039,1776738649516,-500.0,0.00017808,2]
[420933040,1776738649526,-289.88446183,0.00017808,2]
[420933041,1776738649538,-210.11553817,0.00017808,2]
[420933042,1776738649548,-320.96716631,0.00017808,2]
[420933043,1776738649557,-500.0,0.00017808,2]
[420933044,1776738649567,-500.0,0.00017808,2]
[420933045,1776738649576,-500.0,0.00017808,2]
[420933046,1776738649585,-500.0,0.00017808,2]
[420933047,1776738649594,-1554.06,0.00017808,2]
[420933048,1776738649604,-500.0,0.00017808,2]
[420933049,1776738649613,-582.68,0.00017808,2]
[420933050,1776738649622,-5611.23,0.00017808,2]
[420933051,1776738649632,-500.0,0.00017808,2]
[420933052,1776738649641,-8913.81,0.00017808,2]
[420933053,1776738649650,-614.99492748,0.00017808,2]
[420933054,1776738649659,-1546.18,0.00017808,2]
[420933055,1776738649668,-6200.61,0.00017808,2]
[420933056,1776738649677,-7372.06,0.00017808,2]
[420933057,1776738649687,-578.24,0.00017808,2]
[420933058,1776738649696,-947.65,0.00017808,2]
[420933059,1776738649704,-585.09,0.00017808,2]
[420933060,1776738649714,-500.0,0.00017808,2]
[420933061,1776738649723,-168.28478683,0.00017808,2]
[420933062,1776738649732,-755.07,0.00017808,2]
[420933063,1776738649742,-736.57,0.00017808,2]
[420933064,1776738649751,-1858.23,0.00017808,2]
[420933065,1776738649760,-683.84,0.00017808,2]
[420933066,1776738649769,-2845.63,0.00017808,2]
[420933067,1776738649778,-942.56,0.00017808,2]
[420933068,1776738649788,-500.0,0.00017808,2]
[420933069,1776738649797,-931.87,0.00017808,2]
[420933070,1776738649806,-1208.98,0.00017808,2]
[420933071,1776738649815,-909.52,0.00017808,2]
[420933072,1776738649824,-3391.67,0.00017808,2]
[420933073,1776738649833,-500.0,0.00017808,2]
[420933074,1776738649842,-1468.68,0.00017808,2]
[420933075,1776738649851,-634.37,0.00017808,2]
[420933076,1776738649860,-1393.62,0.00017808,2]
[420933077,1776738649869,-1631.25,0.00017808,2]
[420933078,1776738649878,-1034.79,0.00017808,2]
[420933079,1776738649888,-5412.07,0.00017808,2]
[420933080,1776738649897,-1333.09,0.00017808,2]
[420933081,1776738649906,-1055.62,0.00017808,2]
[420933082,1776738649915,-2738.88,0.00017808,2]
[420933083,1776738649924,-2731.89,0.00017808,2]
[420933084,1776738649934,-2600.62,0.00017808,2]
[420933085,1776738649943,-2254.44,0.00017808,2]
[420933086,1776738649952,-500.0,0.00017808,2]
[420933087,1776738649961,-2088.86,0.00017808,2]
[420933088,1776738649970,-500.0,0.00017808,2]
[420933089,1776738649980,-750.4,0.00017808,2]
[420933090,1776738649989,-2809.13,0.00017808,2]
[420933091,1776738649998,-5431.02,0.00017808,2]
[420933092,1776738650008,-500.0,0.00017808,2]
[420933093,1776738650017,-500.0,0.00017808,2]
[420933094,1776738650027,-3845.39,0.00017808,2]
[420933095,1776738650036,-844.1,0.00017808,2]
[420933096,1776738650045,-764.76,0.00017808,2]
[420933097,1776738650055,-628.08,0.00017808,2]
[420933098,1776738650064,-2269.79,0.00017808,2]
[420933099,1776738650073,-5859.1,0.00017808,2]
[420933100,1776738650082,-500.0,0.00017808,2]
[420933101,1776738650091,-500.0,0.00017808,2]
[420933102,1776738650100,-4245.16,0.00017808,2]
[420933103,1776738650109,-701.39,0.00017808,2]
[420933104,1776738650118,-915.33,0.00017808,2]
[420933105,1776738650127,-3796.29,0.00017808,2]
[420933106,1776738650136,-591.67768582,0.00017808,2]
[420933107,1776738650145,-23822.54,0.00017808,2]
[420933108,1776738650155,-1937.17,0.00017808,2]
[420933109,1776738650163,-939.33,0.00017808,2]
[420933110,1776738650172,-519.24,0.00017808,2]
[420933111,1776738650181,-2092.51,0.00017808,2]
[420933112,1776738650190,-500.0,0.00017808,2]
[420933113,1776738650200,-528.23,0.00017808,2]
[420933114,1776738650209,-1690.89,0.00017808,2]
[420933115,1776738650218,-3778.88,0.00017808,2]
[420933116,1776738650227,-1191.49010585,0.00017808,2]
[420933117,1776738650239,-18.01689415,0.00017808,2]
[420933118,1776738650248,-256.61844155,0.00017808,12]
[420933119,1776738650259,-543.38155845,0.00017808,12]
[420933120,1776738650268,-158.24608049,0.00017808,2]
[420933121,1776738650279,-305.50391951,0.00017808,2]
[420933122,1776738650288,-216.09351294,0.00017808,2]
[420933123,1776738650425,-458.015199,0.0001611,2]
[420933124,1776738650435,-208.188726,0.00016915,2]
[420933125,1776738650444,-285.0,0.00017045,2]
[420933126,1776738650454,-247.65648706,0.00017808,2]
[420933127,1776738650463,-463.75,0.00017808,2]
[420933128,1776738650473,-463.75,0.00017808,2]
[420933129,1776738650482,-463.78,0.00017808,2]
[420933130,1776738650491,-213.19,0.00017808,2]
[420933131,1776738650500,-213.19,0.00017808,2]
[420933132,1776738650509,-213.19,0.00017808,2]
[420933133,1776738650518,-3958.42348759,0.0001782,2]
[420933134,1776738650536,-1637.60365777,0.0001782,2]
[420933135,1776738650546,-394.06193829,0.000179,2]
[420933136,1776738650556,-1592.40659559,0.000179,2]
[420933137,1776738764428,187.28545595,0.00026347,120]
[420933138,1776738764724,187.28545595,0.00026347,120]
[420933139,1776738765042,187.28545595,0.00026347,120]
[420933141,1776739066095,500.0,0.00026263,120]
[420933144,1776739749997,1046.0,0.00026263,120]
[420933148,1776739831755,-312.17008373,0.00013152,10]
[420933149,1776739831860,-3865.77995234,0.00013152,10]
[420933226,1776739838207,-820.992352,0.00013152,10]
[420933228,1776739838219,-1.05761193,0.00013152,10]
[420933230,1776739838228,-190.94304435,0.00013285,2]
[420933232,1776739838238,-609.0,0.00013285,2]
[420933234,1776739838248,-179.4357794,0.00013352,2]
[420933236,1776739838257,-300.0,0.00013501,2]
[420933238,1776739838266,-300.0,0.00013501,2]
[420933240,1776739838276,-300.0,0.00013501,2]
[420933242,1776739838285,-300.0,0.00013501,2]
[420933243,1776739838294,-300.0,0.00013502,2]
[420933244,1776739838303,-1200.0,0.00013502,2]
[420933245,1776739838312,-8268.1616681,0.00013506,2]
[420933246,1776739838322,-218.57,0.00013562,2]
[420933247,1776739838332,-218.57,0.00013562,2]
[420933248,1776739838342,-218.57,0.00013562,2]
[420933249,1776739838351,-218.57,0.00013562,2]
[420933250,1776739838360,-218.6,0.00013562,2]
[420933251,1776739838370,-186.69,0.00013562,2]
[420933252,1776739838379,-160.0,0.0001364,2]
[420933253,1776739838388,-500.0,0.00013698,2]
[420933254,1776739838397,-1000.0,0.00013699,2]
[420933255,1776739838407,-500.0,0.00013794,2]
[420933256,1776739838416,-646.652,0.0001388,2]
[420933257,1776739838425,-1409.0,0.0001388,2]
[420933258,1776739838434,-150.563,0.0001388,2]
[420933259,1776739838444,-500.0,0.00014499,2]
[420933260,1776739838454,-500.0,0.00014598,2]
[420933261,1776739838463,-500.0,0.00014773,2]
[420933262,1776739838473,-500.0,0.00014773,2]
[420933263,1776739838483,-505.68172917,0.00014798,2]
[420933264,1776739838491,-416.89592735,0.00014798,2]
[420933265,1776739838500,-500.0,0.00014798,2]
[420933266,1776739838510,-500.0,0.00014798,2]
[420933267,1776739838520,-500.0,0.00014798,2]
[420933268,1776739838530,-278.75748068,0.00014798,2]
[420933269,1776739838539,-500.0,0.00014798,2]
[420933270,1776739838549,-500.0,0.00014798,2]
[420933271,1776739838558,-500.0,0.00014798,2]
[420933272,1776739838568,-500.0,0.00014798,2]
[420933273,1776739838577,-500.0,0.00014798,2]
[420933274,1776739838587,-500.0,0.00014798,2]
[420933275,1776739838597,-155.0,0.00014799,2]
[420933276,1776739838606,-500.0,0.00014799,2]
[420933277,1776739838615,-364.39497386,0.00014799,2]
[420933278,1776739838625,-603.45768067,0.00014799,2]
[420933279,1776739838634,-500.0,0.00014799,2]
[420933280,1776739838643,-1112.20494362,0.00014799,2]
[420933281,1776739838653,-593.98460874,0.00014799,2]
[420933282,1776739838665,-518.22033488,0.00014799,2]
[420933283,1776739838674,-1112.20494362,0.00014799,2]
[420933284,1776739838683,-1112.20494362,0.00014799,2]
[420933285,1776739838693,-1112.20494362,0.00014799,2]
[420933286,1776739838702,-500.0,0.00014799,2]
[420933287,1776739838712,-1112.20494362,0.00014799,2]
[420933288,1776739838721,-489.76147627,0.00014799,2]
[420933289,1776739838730,-1112.20494362,0.00014799,2]
[420933290,1776739838740,-1112.20494362,0.00014799,2]
[420933291,1776739838749,-1112.20494362,0.00014799,2]
[420933292,1776739838759,-1112.20494362,0.00014799,2]
[420933293,1776739838768,-1112.20494362,0.00014799,2]
[420933294,1776739838778,-1112.20494362,0.00014799,2]
[420933295,1776739838787,-1112.20494362,0.00014799,2]
[420933296,1776739838796,-1112.20494362,0.00014799,2]
[420933297,1776739838805,-1112.20494362,0.00014799,2]
[420933298,1776739838814,-1112.20494362,0.00014799,2]
[420933299,1776739838824,-1112.20494362,0.00014799,2]
[420933300,1776739838833,-169.0,0.00014799,2]
[420933301,1776739838843,-56821.69694274,0.000148,2]
[420933305,1776739840158,-730.06404271,0.000148,2]
[420933306,1776739840170,-603.519,0.000148,2]
[420933309,1776739842911,-500.0,0.00014798,2]
[420933310,1776739842920,-2290.29908178,0.000148,2]
[420933311,1776739842932,-660.112334,0.000148,2]
[420933312,1776739842943,-1233.93026423,0.000148,2]
[420933318,1776739845971,-150.362,0.0001388,2]
[420933319,1776739845981,-494.60174072,0.00014798,2]
[420933320,1776739846078,-5.39825928,0.00014798,2]
[420933321,1776739846088,-500.0,0.00014798,2]
[420933322,1776739846097,-500.0,0.00014798,2]
[420933323,1776739846106,-278.04420273,0.000148,2]
[420933324,1776739846132,-146620.9114949,0.000148,2]
[420933325,1776739894548,267.0,0.00024658,120]
[420933328,1776740264396,500.0,0.00026297,120]
[420933329,1776740472104,-7950.04704689,7.6e-05,2]
[420933330,1776740472288,-567.96721681,7.661e-05,2]
[420933331,1776740472313,-1052.0865683,7.761e-05,2]
[420933332,1776740472335,-300.0,7.86e-05,2]
[420933333,1776740472359,-129.899168,7.861e-05,2]
[420933334,1776740475891,-1406.3067518,7.861e-05,2]
[420933335,1776740475917,-1839.21372469,7.961e-05,2]
[420933336,1776740493497,-2020.32527129,8.061e-05,2]
[420933337,1776740493521,-533.0,8.061e-05,2]
[420933338,1776740493543,-193.66418347,8.214e-05,2]
[420933339,1776740493567,-2161.2147942,8.367e-05,2]
[420933340,1776740499771,38456.30722568,0.00026297,120]
[420933341,1776740502167,-2483.21586386,9.041e-05,2]
[420933342,1776740502192,-2504.44462279,9.714e-05,2]
[420933343,1776740544720,-228.52373649,0.00010214,2]
[420933344,1776740544744,-563.0,0.00010214,2]
[420933345,1776740544773,-208.47626351,0.00010388,2]
[420933346,1776740639966,500.0,0.00026297,120]
[420933347,1776740640199,500.0,0.00026297,120]
[420933348,1776740640426,500.0,0.00026297,120]
[420933349,1776740640657,639.1095188,0.00026297,120]
[420933374,1776741031972,-5000.0,0.00010179,10]
[420933375,1776741031982,-1200.0,0.00010282,2]
[420933376,1776741031992,-564.0,0.00010282,2]
[420933377,1776741032001,-185.22042507,0.00010284,2]
[420933378,1776741032011,-300.0,0.00010387,2]
[420933379,1776741032020,-895.56964534,0.00010388,2]
[420933405,1776741038376,-1312.0,0.00010388,2]
[420933406,1776741038481,-389.17102467,0.00010388,2]
[420933407,1776741038491,-300.0,0.00010595,2]
[420933408,1776741038500,-2988.56397428,0.00011061,2]
[420933409,1776741038510,-3127.21800318,0.00011735,2]
[420933410,1776741038519,-218.56010158,0.00012284,2]
[420933411,1776741038529,-3419.38671614,0.00012408,2]
[420933412,1776741038538,-3449.21907283,0.00013082,2]
[420933413,1776741038547,-202.63,0.00013562,2]
[420933414,1776741038557,-202.63,0.00013562,2]
[420933415,1776741038566,-202.63,0.00013562,2]
[420933416,1776741038575,-227.85,0.00013562,2]
[420933417,1776741038584,-227.85,0.00013562,2]
[420933418,1776741038593,-227.85,0.00013562,2]
[420933419,1776741038602,-227.85,0.00013562,2]
[420933420,1776741038611,-227.85,0.00013562,2]
[420933421,1776741038620,-160.0,0.00013562,2]
[420933422,1776741038629,-156.0,0.00013699,2]
[420933423,1776741038638,-1000.0,0.00013699,2]
[420933424,1776741038647,-1000.0,0.00013699,2]
[420933425,1776741038657,-3771.22014249,0.00013755,2]
[420933426,1776741038666,-501.88179153,0.00013879,2]
[420933427,1776741038675,-150.703,0.0001388,2]
[420933428,1776741038685,-2209.0,0.0001388,2]
[420933429,1776741038694,-645.0,0.0001388,2]
[420933430,1776741038703,-600.0,0.00014157,2]
[420933431,1776741038714,-251.89977809,0.00014284,2]
[420933432,1776741038723,-533.20618714,0.000143,2]
[420933433,1776741038732,-2235.42531351,0.000143,2]
[420933434,1776741038741,-1246.68910464,0.000143,2]
[420933435,1776741038751,-218.09322225,0.00014398,2]
[420933436,1776741038760,-3857.72774817,0.00014429,2]
[420933437,1776741038771,-500.0,0.00014473,2]
[420933438,1776741038780,-500.0,0.00014473,2]
[420933439,1776741038789,-150.0,0.00014473,2]
[420933440,1776741038799,-500.0,0.00014473,2]
[420933441,1776741038808,-500.0,0.00014473,2]
[420933442,1776741038817,-637909.64317456,0.00014499,2]
[420933455,1776741040810,-185.52848185,0.00014499,2]
[420933485,1776741043077,-4753.11244523,0.00014499,2]
[420933486,1776741043130,-3124.19821707,0.00014499,2]
[420933487,1776741043141,-1050.59287838,0.00014499,2]
[420933488,1776741043236,-883.78789779,0.00014499,2]
[420933489,1776741043247,-1041.66666667,0.00014499,2]
[420933490,1776741043258,-1801.41093038,0.00014499,2]
[420933491,1776741043269,-92229.43068985,0.00014499,2]
[420933492,1776741043280,-2014.95661106,0.00014499,2]
[420933516,1776741046326,-16894.41589322,0.00014499,2]
[420933539,1776741046539,-346.82645594,0.00014499,2]
[420933541,1776741046551,-21561.74624758,0.00014499,2]
[420933546,1776741046592,-1257.87188007,0.00014499,2]
[420933561,1776741127852,500.0,0.00026297,120]
[420933562,1776741142465,500.0,0.00026297,120]
[420933563,1776741154579,974.59638891,0.00026297,120]
[420933564,1776741175342,500.0,0.00026297,120]
[420933565,1776741186608,500.0,0.00026297,120]
[420933566,1776741195873,500.0,0.00026297,120]
[420933567,1776741225469,506.25206273,0.00026297,120]
[420933568,1776741330284,-514.0,6.598e-05,2]
[420933569,1776741330305,-165.239495,6.598e-05,2]
[420933570,1776741330326,-165.239495,8.797e-05,2]
[420933571,1776741361794,624.62,0.00023288,120]
[420933572,1776741362496,936.94,0.00026325,120]
[420933573,1776741497517,511.36408801,0.00026325,120]
[420933574,1776741660929,520.52,0.00023288,120]
[420933575,1776742037130,500.0,0.00026327,120]
[420933659,1776742238790,-5000.0,0.00010697,10]
[420933660,1776742238799,-572.0,0.00010805,2]
[420933661,1776742238809,-204.44681897,0.00010805,2]
[420933662,1776742238818,-304.58021351,0.00010997,2]
[420933663,1776742238828,-165.239495,0.00010997,2]
[420933664,1776742238837,-241.24724639,0.00012805,2]
[420933665,1776742238847,-165.239495,0.00013196,2]
[420933666,1776742238856,-300.0,0.00013559,2]
[420933667,1776742238865,-1200.0,0.00013559,2]
[420933668,1776742238875,-174.71,0.00013562,2]
[420933669,1776742238884,-174.71,0.00013562,2]
[420933670,1776742238894,-174.71,0.00013562,2]
[420933671,1776742238903,-174.71,0.00013562,2]
[420933672,1776742238912,-174.73,0.00013562,2]
[420933673,1776742238922,-255.5474683,0.00013699,2]
[420933674,1776742238931,-1000.0,0.00013699,2]
[420933675,1776742238941,-5887.01247053,0.00013841,2]
[420933676,1776742238950,-508.12855126,0.00013873,2]
[420933677,1776742238959,-150.0,0.00013873,2]
[420933678,1776742238968,-500.0,0.00013873,2]
[420933679,1776742238979,-626.83136671,0.00013873,2]
[420933680,1776742238987,-500.0,0.00013873,2]
[420933681,1776742238996,-502.59350921,0.00013873,2]
[420933682,1776742239005,-500.90621046,0.00013873,2]
[420933683,1776742239014,-501.94665174,0.00013873,2]
[420933684,1776742239023,-500.0,0.00013873,2]
[420933685,1776742239033,-500.0,0.00013873,2]
[420933686,1776742239047,-500.0,0.00013886,2]
[420933687,1776742239057,-1506215.43140223,0.00013887,2]
[420933688,1776742239068,-23419.13323311,0.00013887,2]
[420933715,1776742246641,-366.0,0.00013462,2]
[420933716,1776742246701,-614.74599911,0.00013462,2]
[420933717,1776742246710,-160.0,0.00013872,2]
[420933718,1776742246719,-43929.84032527,0.00013887,2]
[420933719,1776742252169,500.0,0.00026333,120]
[420933720,1776742252394,516.31263896,0.00026333,120]
[420933721,1776742265512,165.30322029,7.17e-05,2]
[420933722,1776742345845,500.0,0.00026333,120]
[420933723,1776742364814,160.48749432,0.00026333,120]
[420933724,1776742365106,160.48749432,0.00026333,120]
[420933725,1776742365420,160.48749432,0.00026333,120]
[420933726,1776742365713,160.48749432,0.00026333,120]
[420933727,1776742366007,160.48749432,0.00026333,120]
[420933728,1776742366516,160.48749432,0.00026333,120]
[420933729,1776742366618,160.48749432,0.00026333,120]
[420933730,1776742378311,90000.0,0.00024657,120]
[420933731,1776742484402,160.48749428,0.00026333,120]
[420933732,1776742543583,-5000.0,7.098e-05,10]
[420933733,1776742543606,-210.77293767,7.134e-05,2]
[420933734,1776742543628,-521.0,7.134e-05,2]
[420933735,1776742543649,-159.6111152,7.17e-05,2]
[420933736,1776742543672,-248.71206645,9.134e-05,2]
[420933737,1776742545264,3859.90388068,7.027e-05,10]
[420933738,1776742552260,-1140.09611932,7.027e-05,10]
[420933739,1776742645263,500.0,0.00026238,120]
[420933740,1776742944828,500.0,0.00026238,120]
[420933742,1776743253528,500.0,0.00026238,120]
[420933758,1776743432441,-2462.0817623,9.671e-05,10]
[420933760,1776743432452,-2537.9182377,9.671e-05,10]
[420933762,1776743432462,-201.58323758,9.72e-05,2]
[420933764,1776743432472,-556.0,9.72e-05,2]
[420933766,1776743432481,-940.45922413,9.769e-05,10]
[420933768,1776743432490,-300.0,9.866e-05,2]
[420933770,1776743432499,-300.0,9.867e-05,2]
[420933772,1776743432508,-300.0,9.867e-05,2]
[420933774,1776743432518,-300.0,9.867e-05,2]
[420933776,1776743432527,-1200.0,9.867e-05,2]
[420933778,1776743432536,-5000.0,9.868e-05,10]
[420933780,1776743432546,-7930.46111122,0.00010856,2]
[420933857,1776743438736,-31444.15641993,0.00010856,2]
[420933858,1776743438790,-970.50558859,0.00010856,2]
[420933859,1776743438800,-336.016,0.00010858,2]
[420933860,1776743438809,-186.89740796,0.00010858,2]
[420933861,1776743438818,-50000.0,0.00010859,2]
[420933862,1776743438828,-504.19050601,0.00011241,2]
[420933863,1776743438837,-300.0,0.00011242,2]
[420933864,1776743438847,-300.0,0.00011242,2]
[420933865,1776743438856,-300.0,0.00011242,2]
[420933866,1776743438866,-300.0,0.00011242,2]
[420933867,1776743438875,-300.0,0.00011242,2]
[420933868,1776743438885,-300.0,0.00011242,2]
[420933869,1776743438895,-300.0,0.00011242,2]
[420933870,1776743438904,-300.0,0.00011242,2]
[420933871,1776743438914,-300.0,0.00011242,2]
[420933872,1776743438923,-300.0,0.00011242,2]
[420933873,1776743438933,-300.0,0.00011242,2]
[420933874,1776743438942,-300.0,0.00011242,2]
[420933875,1776743438951,-300.0,0.00011242,2]
[420933877,1776743438960,-300.0,0.00011242,2]
[420933879,1776743438969,-300.0,0.00011242,2]
[420933880,1776743438978,-237.86822035,0.0001172,2]
[420933881,1776743438987,-2717.90577741,0.00012436,2]
[420933882,1776743438996,-858.15274923,0.000129,2]
[420933883,1776743439005,-858.15274918,0.000129,2]
[420933884,1776743439014,-7000.0,0.00013,2]
[420933885,1776743439024,-160.0,0.00013,10]
[420933886,1776743439033,-600.0,0.00013258,2]
[420933887,1776743439043,-160.0,0.00013318,2]
[420933888,1776743439052,-858.15274918,0.00013369,2]
[420933889,1776743439061,-151.5,0.0001345,2]
[420933890,1776743439070,-151.5,0.0001345,2]
[420933891,1776743439079,-151.5,0.0001345,2]
[420933892,1776743439089,-201.23495772,0.0001345,2]
[420933893,1776743439098,-500.0,0.0001345,2]
[420933894,1776743439108,-500.0,0.0001345,2]
[420933895,1776743439117,-198.49596775,0.0001345,2]
[420933896,1776743439127,-500.0,0.0001345,2]
[420933897,1776743439136,-1198.58276262,0.0001345,2]
[420933898,1776743439145,-392.83303338,0.0001345,2]
[420933899,1776743439154,-1198.58276262,0.0001345,2]
[420933900,1776743439163,-1198.58276262,0.0001345,2]
[420933901,1776743439172,-1198.58276262,0.0001345,2]
[420933902,1776743439182,-1198.58276262,0.0001345,2]
[420933903,1776743439190,-1198.58276262,0.0001345,2]
[420933904,1776743439200,-1198.58276262,0.0001345,2]
[420933905,1776743439209,-1198.58276262,0.0001345,2]
[420933906,1776743439218,-1198.58276262,0.0001345,2]
[420933907,1776743439227,-1198.58276262,0.0001345,2]
[420933908,1776743439236,-1198.58276262,0.0001345,2]
[420933909,1776743439246,-1198.58276262,0.0001345,2]
[420933910,1776743439255,-1198.58276262,0.0001345,2]
[420933911,1776743439264,-1198.58276262,0.0001345,2]
[420933912,1776743439274,-1198.58276262,0.0001345,2]
[420933913,1776743439283,-1198.58276262,0.0001345,2]
[420933914,1776743439292,-1198.58276262,0.0001345,2]
[420933915,1776743439301,-333.78788816,0.00013451,2]
[420933916,1776743439311,-500.0,0.00013451,2]
[420933917,1776743439320,-500.0,0.00013451,2]
[420933918,1776743439329,-844.0,0.00013451,2]
[420933919,1776743439339,-500.0,0.00013451,2]
[420933920,1776743439348,-844.0,0.00013451,2]
[420933921,1776743439358,-500.0,0.00013451,2]
[420933922,1776743439367,-500.0,0.00013451,2]
[420933923,1776743439376,-844.0,0.00013451,2]
[420933924,1776743439386,-500.0,0.00013451,2]
[420933925,1776743439395,-844.0,0.00013451,2]
[420933926,1776743439405,-500.0,0.00013451,2]
[420933927,1776743439414,-844.0,0.00013451,2]
[420933928,1776743439423,-500.0,0.00013451,2]
[420933929,1776743439432,-844.0,0.00013451,2]
[420933930,1776743439442,-500.0,0.00013451,2]
[420933931,1776743439451,-844.0,0.00013451,2]
[420933932,1776743439460,-205.47433144,0.00013451,2]
[420933933,1776743439471,-844.0,0.00013451,2]
[420933934,1776743439483,-844.0,0.00013451,2]
[420933935,1776743439495,-844.0,0.00013451,2]
[420933936,1776743439506,-844.0,0.00013451,2]
[420933937,1776743439517,-844.0,0.00013451,2]
[420933938,1776743439529,-844.0,0.00013451,2]
[420933939,1776743439540,-844.0,0.00013451,2]
[420933940,1776743439551,-844.0,0.00013451,2]
[420933941,1776743439562,-844.0,0.00013451,2]
[420933942,1776743439572,-844.0,0.00013451,2]
[420933943,1776743439583,-844.0,0.00013451,2]
[420933944,1776743439595,-844.0,0.00013451,2]
[420933945,1776743439605,-844.0,0.00013451,2]
[420933946,1776743439616,-844.0,0.00013451,2]
[420933947,1776743439627,-844.0,0.00013451,2]
[420933948,1776743439638,-844.0,0.00013451,2]
[420933949,1776743439650,-845.38503746,0.00013451,2]
[420933950,1776743439661,-500.0,0.00013499,2]
[420933951,1776743439673,-500.0,0.00013499,2]
[420933952,1776743439683,-500.0,0.00013499,2]
[420933953,1776743439694,-500.0,0.00013499,2]
[420933954,1776743439705,-500.0,0.00013499,2]
[420933955,1776743439716,-500.0,0.00013499,2]
[420933956,1776743439727,-500.0,0.00013499,2]
[420933957,1776743439739,-500.0,0.00013499,2]
[420933958,1776743439751,-500.0,0.00013499,2]
[420933959,1776743439762,-500.0,0.00013499,2]
[420933960,1776743439773,-500.0,0.00013499,2]
[420933961,1776743439783,-500.0,0.00013499,2]
[420933962,1776743439794,-500.0,0.00013499,2]
[420933963,1776743439804,-500.0,0.00013499,2]
[420933964,1776743439815,-500.0,0.00013499,2]
[420933965,1776743439825,-500.0,0.00013499,2]
[420933966,1776743439836,-500.0,0.00013499,2]
[420933967,1776743439846,-213.44643406,0.00013499,2]
[420933968,1776743439868,-286.55356594,0.00013499,2]
[420933969,1776743439878,-500.0,0.00013499,2]
[420933970,1776743439888,-184.48029753,0.00013499,2]
[420933984,1776743446694,-190.64955211,0.00011142,2]
[420933985,1776743446705,-315.51970247,0.00013499,2]
[420933986,1776743446716,-500.0,0.00013499,2]
[420933987,1776743446726,-500.0,0.00013499,2]
[420933988,1776743446736,-500.0,0.00013499,2]
[420933989,1776743446747,-500.0,0.00013499,2]
[420933990,1776743446757,-153.99410278,0.00013499,2]
[420933991,1776743446768,-500.0,0.00013499,2]
[420933992,1776743446779,-151.5,0.00013499,2]
[420933993,1776743446790,-462.03976039,0.00013499,2]
[420933994,1776743446800,-197.55268387,0.00013499,2]
[420933995,1776743446811,-3862.51415881,0.00013625,2]
[420933996,1776743446833,-70775.33807411,0.00013625,2]
[420934026,1776743448442,-10000.0,0.00013625,2]